[Event "Early-Titled-Tuesday-Blitz-September-05-2023"]
[Site "Chess.com"]
[Date "2023.09.05"]
[Round "1"]
[White "DarZay"]
[Black "Semetey"]
[Result "0-1"]
[WhiteElo "2266"]
[BlackElo "2603"]
[TimeControl "180+1"]
[EndTime "8:06:14 PDT"]
[Termination "Semetey won by resignation"]

1. e4 {[%clk 0:02:52.9]} 1... g6 {[%clk 0:02:54.3]} 2. d4 {[%clk 0:02:47.1]}
2... Bg7 {[%clk 0:02:54.4]} 3. Nf3 {[%clk 0:02:41.5]} 3... d6 {[%clk 0:02:54.1]}
4. c4 {[%clk 0:02:41.1]} 4... Bg4 {[%clk 0:02:48.8]} 5. Be2 {[%clk 0:02:40.1]}
5... Bxf3 {[%clk 0:02:45.8]} 6. Bxf3 {[%clk 0:02:40.2]} 6... Nc6 {[%clk
0:02:46.4]} 7. Be3 {[%clk 0:02:39.3]} 7... e5 {[%clk 0:02:45.9]} 8. d5 {[%clk
0:02:38.2]} 8... Nd4 {[%clk 0:02:45.9]} 9. Bxd4 {[%clk 0:02:32.1]} 9... exd4
{[%clk 0:02:44.8]} 10. Nd2 {[%clk 0:02:32.3]} 10... Ne7 {[%clk 0:02:35]} 11. Nb3
{[%clk 0:02:31.5]} 11... c5 {[%clk 0:02:34.6]} 12. dxc6 {[%clk 0:02:24.5]} 12...
bxc6 {[%clk 0:02:30.1]} 13. Nxd4 {[%clk 0:02:17.2]} 13... Qa5+ {[%clk
0:02:29.3]} 14. Kf1 {[%clk 0:02:15.4]} 14... Qc5 {[%clk 0:02:27.3]} 15. Nb3
{[%clk 0:02:09.5]} 15... Qxc4+ {[%clk 0:02:27]} 16. Kg1 {[%clk 0:02:00.2]} 16...
Bxb2 {[%clk 0:02:25.4]} 17. Rb1 {[%clk 0:02:00.6]} 17... Be5 {[%clk 0:02:22.2]}
18. Nd2 {[%clk 0:01:43]} 18... Qxa2 {[%clk 0:02:12.4]} 19. Be2 {[%clk
0:01:41.6]} 19... O-O {[%clk 0:02:09.3]} 20. Bc4 {[%clk 0:01:41.4]} 20... Qa5
{[%clk 0:01:51.9]} 21. h4 {[%clk 0:01:39.6]} 21... d5 {[%clk 0:01:45.2]} 22.
exd5 {[%clk 0:01:39.2]} 22... cxd5 {[%clk 0:01:46.1]} 23. Rb5 {[%clk 0:01:36.4]}
23... Qc7 {[%clk 0:01:31.3]} 24. Bd3 {[%clk 0:01:24.3]} 24... Rab8 {[%clk
0:01:29.5]} 25. Rxb8 {[%clk 0:01:20]} 25... Rxb8 {[%clk 0:01:30.4]} 26. h5
{[%clk 0:01:19.6]} 26... Bd4 {[%clk 0:01:24.5]} 27. hxg6 {[%clk 0:01:16.8]}
27... hxg6 {[%clk 0:01:23]} 28. Qg4 {[%clk 0:01:10.8]} 28... Qc5 {[%clk
0:01:16.9]} 29. Qh4 {[%clk 0:01:08.3]} 29... Rb2 {[%clk 0:01:14.5]} 30. Qh7+
{[%clk 0:00:38.3]} 30... Kf8 {[%clk 0:01:13.5]} 31. Qh6+ {[%clk 0:00:33.9]}
31... Bg7 {[%clk 0:01:02.9]} 32. Qf4 {[%clk 0:00:29.9]} 32... Qc1+ {[%clk
0:01:02.6]} 33. Bf1 {[%clk 0:00:23.3]} 33... Qxd2 {[%clk 0:01:02.3]} 34. Qf3
{[%clk 0:00:17.7]} 34... Bd4 {[%clk 0:01:00.3]} 0-1

[Event "Early-Titled-Tuesday-Blitz-September-05-2023"]
[Site "Chess.com"]
[Date "2023.09.05"]
[Round "1"]
[White "smilingice"]
[Black "viktorskliarov"]
[Result "1-0"]
[WhiteElo "2414"]
[BlackElo "2671"]
[TimeControl "180+1"]
[EndTime "8:06:19 PDT"]
[Termination "smilingice won by resignation"]

1. e4 {[%clk 0:02:44.7]} 1... c5 {[%clk 0:02:55.9]} 2. Nf3 {[%clk 0:02:44.1]}
2... Nc6 {[%clk 0:02:55.9]} 3. Bb5 {[%clk 0:02:43.2]} 3... e6 {[%clk 0:02:56]}
4. O-O {[%clk 0:02:36.2]} 4... Nge7 {[%clk 0:02:56.2]} 5. Re1 {[%clk 0:02:36.3]}
5... Nd4 {[%clk 0:02:55.8]} 6. Bf1 {[%clk 0:02:32]} 6... Nec6 {[%clk 0:02:55.3]}
7. c3 {[%clk 0:02:31.8]} 7... Nxf3+ {[%clk 0:02:55.2]} 8. Qxf3 {[%clk
0:02:31.8]} 8... Be7 {[%clk 0:02:55.8]} 9. d3 {[%clk 0:02:22.9]} 9... O-O {[%clk
0:02:55.1]} 10. Nd2 {[%clk 0:02:19.5]} 10... b6 {[%clk 0:02:53.5]} 11. e5 {[%clk
0:02:11.1]} 11... Bb7 {[%clk 0:02:51.1]} 12. Qg3 {[%clk 0:02:10.5]} 12... d6
{[%clk 0:02:42.5]} 13. Nf3 {[%clk 0:02:04.2]} 13... dxe5 {[%clk 0:02:40.8]} 14.
Nxe5 {[%clk 0:01:59.2]} 14... Nxe5 {[%clk 0:02:37.8]} 15. Qxe5 {[%clk
0:01:58.6]} 15... Bd6 {[%clk 0:02:36.5]} 16. Qh5 {[%clk 0:01:57.1]} 16... Qf6
{[%clk 0:02:36]} 17. Bg5 {[%clk 0:01:53.1]} 17... Qg6 {[%clk 0:02:34.4]} 18.
Qxg6 {[%clk 0:01:51.8]} 18... hxg6 {[%clk 0:02:35.3]} 19. a4 {[%clk 0:01:49.3]}
19... Rfe8 {[%clk 0:02:24.8]} 20. a5 {[%clk 0:01:48.7]} 20... f6 {[%clk
0:02:23.8]} 21. Be3 {[%clk 0:01:48]} 21... Kf7 {[%clk 0:02:23.3]} 22. d4 {[%clk
0:01:48.1]} 22... Rh8 {[%clk 0:02:14.5]} 23. h3 {[%clk 0:01:46.9]} 23... g5
{[%clk 0:01:51.8]} 24. dxc5 {[%clk 0:01:43.1]} 24... Bxc5 {[%clk 0:01:45.9]} 25.
Bxc5 {[%clk 0:01:39.6]} 25... bxc5 {[%clk 0:01:45.8]} 26. a6 {[%clk 0:01:36.2]}
26... Bd5 {[%clk 0:01:33.9]} 27. c4 {[%clk 0:01:35.6]} 27... Bc6 {[%clk
0:01:33.5]} 28. Ra5 {[%clk 0:01:35.7]} 28... Rhc8 {[%clk 0:01:28.9]} 29. Rxc5
{[%clk 0:01:35.3]} 29... Be8 {[%clk 0:01:26.7]} 30. Rxc8 {[%clk 0:01:32.9]}
30... Rxc8 {[%clk 0:01:26.2]} 31. b4 {[%clk 0:01:30.5]} 31... e5 {[%clk
0:01:22.3]} 32. b5 {[%clk 0:01:30.6]} 32... Ke7 {[%clk 0:01:18.1]} 33. Rb1
{[%clk 0:01:29.5]} 33... Kd6 {[%clk 0:01:15.5]} 34. b6 {[%clk 0:01:29.6]} 34...
axb6 {[%clk 0:01:14.8]} 35. Rxb6+ {[%clk 0:01:28.6]} 35... Kc5 {[%clk
0:01:12.4]} 36. Rb7 {[%clk 0:01:25.3]} 36... Ra8 {[%clk 0:01:11.5]} 37. a7
{[%clk 0:01:24.2]} 37... Bc6 {[%clk 0:01:00.7]} 38. Rxg7 {[%clk 0:01:24]} 38...
Kb6 {[%clk 0:01:00.8]} 39. g3 {[%clk 0:01:20.9]} 39... Rxa7 {[%clk 0:00:59]} 40.
c5+ {[%clk 0:01:20.5]} 1-0

[Event "Early-Titled-Tuesday-Blitz-September-05-2023"]
[Site "Chess.com"]
[Date "2023.09.05"]
[Round "1"]
[White "Dave_ChessMate"]
[Black "McCarthyStone"]
[Result "1-0"]
[WhiteElo "2734"]
[BlackElo "2416"]
[TimeControl "180+1"]
[EndTime "8:06:23 PDT"]
[Termination "Dave_ChessMate won by checkmate"]

1. d4 {[%clk 0:03:00.9]} 1... Nf6 {[%clk 0:02:58.2]} 2. Nc3 {[%clk 0:03:01.8]}
2... d6 {[%clk 0:02:57.1]} 3. e4 {[%clk 0:03:01.9]} 3... e5 {[%clk 0:02:57.7]}
4. Nf3 {[%clk 0:03:01.2]} 4... exd4 {[%clk 0:02:58.1]} 5. Nxd4 {[%clk
0:03:02.1]} 5... g6 {[%clk 0:02:58.7]} 6. Be2 {[%clk 0:03:01.6]} 6... Bg7 {[%clk
0:02:59.3]} 7. Be3 {[%clk 0:03:02.1]} 7... O-O {[%clk 0:03:00.2]} 8. Qd2 {[%clk
0:03:02.2]} 8... Re8 {[%clk 0:03:00.8]} 9. f3 {[%clk 0:03:00.7]} 9... d5 {[%clk
0:03:01.1]} 10. O-O-O {[%clk 0:02:52.5]} 10... c5 {[%clk 0:03:00.5]} 11. Nb3
{[%clk 0:02:52.1]} 11... d4 {[%clk 0:03:00.3]} 12. Nxc5 {[%clk 0:02:51.4]} 12...
Nc6 {[%clk 0:02:34.6]} 13. Bxd4 {[%clk 0:02:50.8]} 13... Nxd4 {[%clk 0:02:33]}
14. Qxd4 {[%clk 0:02:51.3]} 14... Nd7 {[%clk 0:02:02.1]} 15. Qd2 {[%clk
0:02:26.1]} 15... Qb6 {[%clk 0:00:20.9]} 16. Nxd7 {[%clk 0:02:25.5]} 16... Bxd7
{[%clk 0:00:21.1]} 17. Qxd7 {[%clk 0:02:26.4]} 17... Rec8 {[%clk 0:00:05.3]} 18.
Na4 {[%clk 0:01:55.6]} 18... Qe3+ {[%clk 0:00:04.8]} 19. Qd2 {[%clk 0:01:54.8]}
19... Qf2 {[%clk 0:00:01.3]} 20. Rhf1 {[%clk 0:01:35.8]} 20... Qh4 {[%clk
0:00:01.4]} 21. f4 {[%clk 0:01:35.1]} 21... Qe7 {[%clk 0:00:01]} 22. e5 {[%clk
0:01:34.6]} 22... b5 {[%clk 0:00:01]} 23. Nc3 {[%clk 0:01:33.6]} 23... b4 {[%clk
0:00:01.7]} 24. Nd5 {[%clk 0:01:33.6]} 24... Qb7 {[%clk 0:00:02.5]} 25. Bf3
{[%clk 0:01:30.3]} 25... Qa6 {[%clk 0:00:03.1]} 26. Kb1 {[%clk 0:01:28]} 26...
Rab8 {[%clk 0:00:03]} 27. Ne7+ {[%clk 0:01:27.5]} 27... Kh8 {[%clk 0:00:03.2]}
28. Nxc8 {[%clk 0:01:27]} 28... Rxc8 {[%clk 0:00:04.1]} 29. Qd8+ {[%clk
0:01:25.5]} 29... Rxd8 {[%clk 0:00:03.7]} 30. Rxd8+ {[%clk 0:01:26.4]} 30... Bf8
{[%clk 0:00:04.6]} 31. Rxf8+ {[%clk 0:01:26.9]} 31... Kg7 {[%clk 0:00:04.2]} 32.
Rxf7+ {[%clk 0:01:24.5]} 32... Kxf7 {[%clk 0:00:04.3]} 33. Rd1 {[%clk
0:01:25.1]} 33... Qb6 {[%clk 0:00:04.4]} 34. g3 {[%clk 0:01:23.2]} 34... Qe3
{[%clk 0:00:04.5]} 35. Bd5+ {[%clk 0:01:21.7]} 35... Ke7 {[%clk 0:00:04.6]} 36.
Bb3 {[%clk 0:01:14.9]} 36... Qe2 {[%clk 0:00:04.4]} 37. c4 {[%clk 0:01:13.9]}
37... bxc3 {[%clk 0:00:03.7]} 38. bxc3 {[%clk 0:01:14.6]} 38... Qxh2 {[%clk
0:00:04.3]} 39. e6 {[%clk 0:01:13.4]} 39... Qxg3 {[%clk 0:00:04]} 40. Rd7+
{[%clk 0:01:13.4]} 40... Kf6 {[%clk 0:00:04.4]} 41. Rf7# {[%clk 0:01:13.3]} 1-0

[Event "Early-Titled-Tuesday-Blitz-September-05-2023"]
[Site "Chess.com"]
[Date "2023.09.05"]
[Round "1"]
[White "Aswathchess"]
[Black "ashwanitiwari"]
[Result "1-0"]
[WhiteElo "2577"]
[BlackElo "2160"]
[TimeControl "180+1"]
[EndTime "8:06:23 PDT"]
[Termination "Aswathchess won by resignation"]

1. Nf3 {[%clk 0:03:00]} 1... f5 {[%clk 0:02:59.6]} 2. d4 {[%clk 0:02:59.1]} 2...
Nf6 {[%clk 0:02:59.6]} 3. c4 {[%clk 0:02:58.8]} 3... d6 {[%clk 0:02:58.8]} 4. g3
{[%clk 0:02:57.5]} 4... g6 {[%clk 0:02:59]} 5. Bg2 {[%clk 0:02:57.1]} 5... Bg7
{[%clk 0:02:59.4]} 6. O-O {[%clk 0:02:57.4]} 6... O-O {[%clk 0:02:59.4]} 7. Nc3
{[%clk 0:02:57.7]} 7... Qe8 {[%clk 0:02:59.4]} 8. Qb3 {[%clk 0:02:57.3]} 8... e5
{[%clk 0:02:59]} 9. dxe5 {[%clk 0:02:24.5]} 9... dxe5 {[%clk 0:02:58]} 10. Bg5
{[%clk 0:02:20.2]} 10... c6 {[%clk 0:02:55.8]} 11. Bxf6 {[%clk 0:02:15.2]} 11...
Bxf6 {[%clk 0:02:55.1]} 12. e4 {[%clk 0:02:15.7]} 12... f4 {[%clk 0:02:47.5]}
13. Rad1 {[%clk 0:02:02.1]} 13... fxg3 {[%clk 0:02:43.6]} 14. fxg3 {[%clk
0:02:00.4]} 14... Nd7 {[%clk 0:02:43.9]} 15. c5+ {[%clk 0:01:53.8]} 15... Kg7
{[%clk 0:02:42.2]} 16. Qc4 {[%clk 0:01:53.6]} 16... Qe7 {[%clk 0:02:41.1]} 17.
b4 {[%clk 0:01:53.3]} 17... h6 {[%clk 0:02:27.2]} 18. Kh1 {[%clk 0:01:44.2]}
18... a6 {[%clk 0:02:21.4]} 19. Rd2 {[%clk 0:01:39.5]} 19... a5 {[%clk 0:02:21]}
20. a3 {[%clk 0:01:36.1]} 20... axb4 {[%clk 0:02:20.7]} 21. axb4 {[%clk
0:01:37]} 21... Re8 {[%clk 0:02:14.4]} 22. Rfd1 {[%clk 0:01:34.1]} 22... Nf8
{[%clk 0:02:14.3]} 23. Rd6 {[%clk 0:01:16.8]} 23... Be6 {[%clk 0:02:13.6]} 24.
Qd3 {[%clk 0:01:11.1]} 24... Rad8 {[%clk 0:02:11.2]} 25. Rxd8 {[%clk 0:01:09.3]}
25... Rxd8 {[%clk 0:02:10.8]} 26. Qxd8 {[%clk 0:01:09.1]} 26... Qxd8 {[%clk
0:02:10.6]} 27. Rxd8 {[%clk 0:01:09.7]} 27... Bxd8 {[%clk 0:02:10.4]} 28. Bf1
{[%clk 0:01:05.6]} 28... Bf6 {[%clk 0:02:10.1]} 29. Na4 {[%clk 0:01:05.5]} 29...
Nd7 {[%clk 0:02:09.2]} 30. Kg2 {[%clk 0:01:05.7]} 30... g5 {[%clk 0:02:08.8]}
31. Kf2 {[%clk 0:01:05.3]} 31... Kf7 {[%clk 0:02:08.5]} 32. Nd2 {[%clk 0:01:05]}
32... Ke7 {[%clk 0:02:09]} 33. Bc4 {[%clk 0:01:03.7]} 33... Nf8 {[%clk
0:01:54.9]} 34. Ke3 {[%clk 0:01:02.4]} 34... Bxc4 {[%clk 0:01:54.1]} 35. Nxc4
{[%clk 0:01:03.3]} 35... Ne6 {[%clk 0:01:54.7]} 36. Na5 {[%clk 0:01:03.4]} 36...
Nd4 {[%clk 0:01:53.7]} 37. Kd3 {[%clk 0:01:02.5]} 37... g4 {[%clk 0:01:54]} 38.
Nxb7 {[%clk 0:01:00.1]} 38... Nf3 {[%clk 0:01:52.9]} 39. Na5 {[%clk 0:01:00.2]}
39... Kd7 {[%clk 0:01:50.9]} 40. Nb6+ {[%clk 0:00:57.1]} 40... Kc7 {[%clk
0:01:50.8]} 41. b5 {[%clk 0:00:56.6]} 41... cxb5 {[%clk 0:01:50.2]} 42. Nd5+
{[%clk 0:00:56.5]} 42... Kc8 {[%clk 0:01:43.7]} 43. Nxf6 {[%clk 0:00:55.6]}
43... Nxh2 {[%clk 0:01:43]} 44. c6 {[%clk 0:00:55.7]} 44... Nf1 {[%clk 0:01:42]}
45. Nxg4 {[%clk 0:00:55.7]} 45... Nxg3 {[%clk 0:01:41.9]} 46. Nxe5 {[%clk
0:00:55.6]} 46... Kc7 {[%clk 0:01:42.5]} 47. Ng4 {[%clk 0:00:51.5]} 47... b4
{[%clk 0:01:42.8]} 48. Nxh6 {[%clk 0:00:50.8]} 48... b3 {[%clk 0:01:43.4]} 49.
Nf5 {[%clk 0:00:49.4]} 49... b2 {[%clk 0:01:43.3]} 50. Kc2 {[%clk 0:00:48.1]}
50... Nxe4 {[%clk 0:01:42.5]} 51. Kxb2 {[%clk 0:00:48.1]} 51... Nd6 {[%clk
0:01:31]} 52. Nxd6 {[%clk 0:00:47.3]} 52... Kxd6 {[%clk 0:01:31.1]} 53. Kc3
{[%clk 0:00:47.7]} 53... Kc7 {[%clk 0:01:31]} 54. Kc4 {[%clk 0:00:48.3]} 54...
Kc8 {[%clk 0:01:30.5]} 55. Kd5 {[%clk 0:00:48.6]} 1-0

[Event "Early-Titled-Tuesday-Blitz-September-05-2023"]
[Site "Chess.com"]
[Date "2023.09.05"]
[Round "1"]
[White "taleslascando"]
[Black "szachuspl"]
[Result "0-1"]
[WhiteElo "1971"]
[BlackElo "2554"]
[TimeControl "180+1"]
[EndTime "8:06:26 PDT"]
[Termination "szachuspl won on time"]

1. e4 {[%clk 0:02:59.1]} 1... c6 {[%clk 0:02:56.3]} 2. Nf3 {[%clk 0:02:59.1]}
2... d5 {[%clk 0:02:56.1]} 3. Nc3 {[%clk 0:02:57.2]} 3... Bg4 {[%clk 0:02:55.1]}
4. h3 {[%clk 0:02:49.1]} 4... Bxf3 {[%clk 0:02:54.3]} 5. Qxf3 {[%clk 0:02:48.4]}
5... e6 {[%clk 0:02:54.5]} 6. b3 {[%clk 0:02:36.2]} 6... g6 {[%clk 0:02:50.1]}
7. Bb2 {[%clk 0:02:35.8]} 7... Bg7 {[%clk 0:02:49.9]} 8. O-O-O {[%clk
0:02:34.6]} 8... Ne7 {[%clk 0:02:47.5]} 9. h4 {[%clk 0:02:22.5]} 9... h5 {[%clk
0:02:40.2]} 10. g4 {[%clk 0:02:21.5]} 10... Nd7 {[%clk 0:02:38.7]} 11. gxh5
{[%clk 0:02:17]} 11... Rxh5 {[%clk 0:02:37.9]} 12. exd5 {[%clk 0:02:08.1]} 12...
cxd5 {[%clk 0:02:36]} 13. Bd3 {[%clk 0:02:08.1]} 13... Rc8 {[%clk 0:02:24.4]}
14. Kb1 {[%clk 0:02:07.4]} 14... Ne5 {[%clk 0:02:23.6]} 15. Qe2 {[%clk
0:01:59.9]} 15... Nxd3 {[%clk 0:02:23.3]} 16. Qxd3 {[%clk 0:01:59.7]} 16... a6
{[%clk 0:02:20.4]} 17. Rdg1 {[%clk 0:01:34.1]} 17... Kf8 {[%clk 0:02:18]} 18.
Rg5 {[%clk 0:01:33.7]} 18... Nf5 {[%clk 0:02:08.7]} 19. Rxh5 {[%clk 0:01:33.5]}
19... gxh5 {[%clk 0:02:09]} 20. Qf3 {[%clk 0:01:19.5]} 20... Qb6 {[%clk
0:01:51.3]} 21. Qxh5 {[%clk 0:01:07.4]} 21... Qxf2 {[%clk 0:01:50.4]} 22. Na4
{[%clk 0:01:01.3]} 22... Bxb2 {[%clk 0:01:37]} 23. Nxb2 {[%clk 0:01:01]} 23...
Qd4 {[%clk 0:01:33.4]} 24. Qg5 {[%clk 0:00:58.2]} 24... Qg7 {[%clk 0:01:28.9]}
25. Qf4 {[%clk 0:00:45.3]} 25... Qg3 {[%clk 0:01:26]} 26. Qb4+ {[%clk
0:00:36.4]} 26... Qd6 {[%clk 0:01:19.7]} 27. Qxd6+ {[%clk 0:00:34.3]} 27... Nxd6
{[%clk 0:01:19.3]} 28. h5 {[%clk 0:00:34.2]} 28... Kg7 {[%clk 0:01:19.5]} 29.
Nd3 {[%clk 0:00:33.5]} 29... Nf5 {[%clk 0:01:19.1]} 30. Nf4 {[%clk 0:00:27.3]}
30... Rg8 {[%clk 0:01:14.1]} 31. c4 {[%clk 0:00:18.5]} 31... dxc4 {[%clk
0:01:08.8]} 32. bxc4 {[%clk 0:00:18.3]} 32... Kf6 {[%clk 0:01:08]} 33. h6 {[%clk
0:00:14.5]} 33... Rh8 {[%clk 0:01:07.3]} 34. Kc2 {[%clk 0:00:09.1]} 34... Rxh6
{[%clk 0:01:05.5]} 35. Rg1 {[%clk 0:00:07.4]} 35... Rh4 {[%clk 0:01:03]} 0-1

[Event "Early-Titled-Tuesday-Blitz-September-05-2023"]
[Site "Chess.com"]
[Date "2023.09.05"]
[Round "1"]
[White "MarcoRiehle"]
[Black "renehp"]
[Result "1-0"]
[WhiteElo "2803"]
[BlackElo "2442"]
[TimeControl "180+1"]
[EndTime "8:06:27 PDT"]
[Termination "MarcoRiehle won on time"]

1. e4 {[%clk 0:03:00]} 1... c5 {[%clk 0:03:00.1]} 2. a3 {[%clk 0:03:00.4]} 2...
g6 {[%clk 0:02:57.8]} 3. h4 {[%clk 0:03:00.2]} 3... Bg7 {[%clk 0:02:54.8]} 4. h5
{[%clk 0:03:00.2]} 4... Nc6 {[%clk 0:02:54.8]} 5. Nc3 {[%clk 0:02:59.8]} 5... d6
{[%clk 0:02:53.1]} 6. Bc4 {[%clk 0:02:59.4]} 6... e6 {[%clk 0:02:52.9]} 7. d3
{[%clk 0:02:58.9]} 7... Nge7 {[%clk 0:02:50.9]} 8. Nf3 {[%clk 0:02:58.3]} 8...
gxh5 {[%clk 0:02:45.5]} 9. Bg5 {[%clk 0:02:54.2]} 9... h6 {[%clk 0:02:44.1]} 10.
Bh4 {[%clk 0:02:53.4]} 10... Qb6 {[%clk 0:02:37.4]} 11. Bb3 {[%clk 0:02:46.5]}
11... Ng6 {[%clk 0:02:32.1]} 12. Qd2 {[%clk 0:02:41.8]} 12... Nd4 {[%clk
0:02:29.1]} 13. Nxd4 {[%clk 0:02:40.2]} 13... cxd4 {[%clk 0:02:30]} 14. Ne2
{[%clk 0:02:33.4]} 14... Bd7 {[%clk 0:02:27]} 15. O-O-O {[%clk 0:02:32.8]} 15...
a5 {[%clk 0:02:26.7]} 16. Kb1 {[%clk 0:02:29.2]} 16... a4 {[%clk 0:02:17]} 17.
Ba2 {[%clk 0:02:29]} 17... Nxh4 {[%clk 0:02:11.2]} 18. Rxh4 {[%clk 0:02:28.5]}
18... O-O-O {[%clk 0:02:11.8]} 19. Rxh5 {[%clk 0:02:25.5]} 19... Kb8 {[%clk
0:02:10.3]} 20. f4 {[%clk 0:02:23.1]} 20... Rc8 {[%clk 0:02:10.4]} 21. Qb4
{[%clk 0:02:12]} 21... Qc7 {[%clk 0:01:44.4]} 22. Rc1 {[%clk 0:02:07.6]} 22...
e5 {[%clk 0:01:44.7]} 23. fxe5 {[%clk 0:01:49.2]} 23... dxe5 {[%clk 0:01:18.5]}
24. Ng3 {[%clk 0:01:48.1]} 24... Bf8 {[%clk 0:00:55]} 25. Qd2 {[%clk 0:01:31.4]}
25... f6 {[%clk 0:00:52.3]} 26. Bd5 {[%clk 0:01:20.1]} 26... Qb6 {[%clk
0:00:51.6]} 27. Ka1 {[%clk 0:01:16.1]} 27... Bxa3 {[%clk 0:00:16]} 28. bxa3
{[%clk 0:01:13.9]} 28... Rc3 {[%clk 0:00:15.5]} 29. Rb1 {[%clk 0:00:54.5]} 1-0

[Event "Early-Titled-Tuesday-Blitz-September-05-2023"]
[Site "Chess.com"]
[Date "2023.09.05"]
[Round "1"]
[White "Tonychess32"]
[Black "HSH1987"]
[Result "0-1"]
[WhiteElo "2420"]
[BlackElo "2748"]
[TimeControl "180+1"]
[EndTime "8:06:28 PDT"]
[Termination "HSH1987 won on time"]

1. e4 {[%clk 0:03:00.9]} 1... d6 {[%clk 0:03:00.9]} 2. d4 {[%clk 0:03:00.2]}
2... Nf6 {[%clk 0:03:01.8]} 3. Nc3 {[%clk 0:02:59.5]} 3... g6 {[%clk 0:03:01.9]}
4. Nf3 {[%clk 0:02:58.9]} 4... Bg7 {[%clk 0:03:01.7]} 5. h3 {[%clk 0:02:57.9]}
5... O-O {[%clk 0:03:01.8]} 6. Be3 {[%clk 0:02:56.1]} 6... c6 {[%clk 0:03:02]}
7. Qd2 {[%clk 0:02:56.3]} 7... Nbd7 {[%clk 0:03:01.7]} 8. Be2 {[%clk 0:02:41.9]}
8... e5 {[%clk 0:03:00.9]} 9. O-O {[%clk 0:02:41.9]} 9... Re8 {[%clk 0:03:00]}
10. dxe5 {[%clk 0:02:41.8]} 10... dxe5 {[%clk 0:02:58.9]} 11. Rfd1 {[%clk
0:02:39]} 11... Qe7 {[%clk 0:02:58.5]} 12. a3 {[%clk 0:02:27.3]} 12... Nc5
{[%clk 0:02:57.4]} 13. Bd3 {[%clk 0:02:10.7]} 13... Rd8 {[%clk 0:02:52.2]} 14.
Qe2 {[%clk 0:02:08.1]} 14... Nh5 {[%clk 0:02:37.8]} 15. Bg5 {[%clk 0:01:49.2]}
15... Bf6 {[%clk 0:02:35.5]} 16. Be3 {[%clk 0:01:39.4]} 16... Nxd3 {[%clk
0:02:34.9]} 17. Rxd3 {[%clk 0:01:35.2]} 17... Be6 {[%clk 0:02:33.9]} 18. Rad1
{[%clk 0:01:28.1]} 18... Rxd3 {[%clk 0:02:24.9]} 19. Qxd3 {[%clk 0:01:27.1]}
19... Qc7 {[%clk 0:02:22.8]} 20. Kh2 {[%clk 0:01:19.9]} 20... b6 {[%clk
0:02:18.6]} 21. Bg5 {[%clk 0:01:09.6]} 21... Rd8 {[%clk 0:01:56.9]} 22. Qf1
{[%clk 0:00:33.9]} 22... Rxd1 {[%clk 0:01:39.9]} 23. Qxd1 {[%clk 0:00:33.9]}
23... Kg7 {[%clk 0:01:39.6]} 24. Bxf6+ {[%clk 0:00:33.9]} 24... Nxf6 {[%clk
0:01:36.1]} 25. Qd2 {[%clk 0:00:34.3]} 25... h6 {[%clk 0:01:35.6]} 26. g3 {[%clk
0:00:22.9]} 26... Nd7 {[%clk 0:01:34.7]} 27. Kg2 {[%clk 0:00:18.4]} 27... b5
{[%clk 0:01:34.8]} 28. Qe3 {[%clk 0:00:18.4]} 28... a5 {[%clk 0:01:32.2]} 29.
Nd2 {[%clk 0:00:16.4]} 29... Qd6 {[%clk 0:01:31.1]} 30. f4 {[%clk 0:00:09.2]}
30... Nc5 {[%clk 0:01:22.8]} 31. Nf3 {[%clk 0:00:09.1]} 31... exf4 {[%clk
0:01:21.6]} 32. gxf4 {[%clk 0:00:09.5]} 32... b4 {[%clk 0:01:20.7]} 33. axb4
{[%clk 0:00:09.2]} 33... axb4 {[%clk 0:01:21.6]} 34. Ne2 {[%clk 0:00:09.7]}
34... Qd1 {[%clk 0:01:12.6]} 35. Ned4 {[%clk 0:00:06]} 35... Bc4 {[%clk
0:01:08.9]} 36. Qf2 {[%clk 0:00:04.5]} 36... Nxe4 {[%clk 0:01:07.3]} 37. Qe3
{[%clk 0:00:01.3]} 37... Qf1+ {[%clk 0:01:01]} 38. Kh2 {[%clk 0:00:01.2]} 38...
Bd5 {[%clk 0:01:00.4]} 0-1

[Event "Early-Titled-Tuesday-Blitz-September-05-2023"]
[Site "Chess.com"]
[Date "2023.09.05"]
[Round "1"]
[White "ActorXu"]
[Black "MAGMAchess02"]
[Result "1-0"]
[WhiteElo "2720"]
[BlackElo "2410"]
[TimeControl "180+1"]
[EndTime "8:06:30 PDT"]
[Termination "ActorXu won by resignation"]

1. e4 {[%clk 0:02:54.4]} 1... g6 {[%clk 0:02:58.7]} 2. d4 {[%clk 0:02:50.1]}
2... Bg7 {[%clk 0:02:59.3]} 3. Nc3 {[%clk 0:02:49.3]} 3... c6 {[%clk 0:03:00]}
4. f4 {[%clk 0:02:44.9]} 4... d5 {[%clk 0:03:00.2]} 5. e5 {[%clk 0:02:45.7]}
5... h5 {[%clk 0:03:00.5]} 6. Nf3 {[%clk 0:02:43.4]} 6... Nh6 {[%clk 0:03:01]}
7. Be3 {[%clk 0:02:43.4]} 7... Bg4 {[%clk 0:02:56.2]} 8. Be2 {[%clk 0:02:42.1]}
8... Nf5 {[%clk 0:02:53.6]} 9. Bf2 {[%clk 0:02:42.3]} 9... h4 {[%clk 0:02:53.2]}
10. Qd2 {[%clk 0:02:39.6]} 10... e6 {[%clk 0:02:48.4]} 11. O-O-O {[%clk
0:02:39]} 11... b5 {[%clk 0:02:43.9]} 12. Ng5 {[%clk 0:02:33]} 12... Bxe2 {[%clk
0:02:42.2]} 13. Nxe2 {[%clk 0:02:33.9]} 13... Nd7 {[%clk 0:02:37.8]} 14. g4
{[%clk 0:02:33.8]} 14... Ne7 {[%clk 0:02:26.2]} 15. h3 {[%clk 0:02:29.4]} 15...
Nb6 {[%clk 0:02:22.4]} 16. Nf3 {[%clk 0:02:24.2]} 16... Nc4 {[%clk 0:02:19.4]}
17. Qc3 {[%clk 0:02:24.2]} 17... a5 {[%clk 0:02:05.3]} 18. Bxh4 {[%clk
0:02:21.9]} 18... b4 {[%clk 0:02:05.1]} 19. Qd3 {[%clk 0:02:19.5]} 19... a4
{[%clk 0:01:54]} 20. Bf6 {[%clk 0:02:06.7]} 20... Bxf6 {[%clk 0:01:45]} 21. exf6
{[%clk 0:02:06.6]} 21... Nc8 {[%clk 0:01:45.3]} 22. g5 {[%clk 0:02:00.2]} 22...
N8d6 {[%clk 0:01:28.8]} 23. Ne5 {[%clk 0:01:59.9]} 23... Nxe5 {[%clk 0:00:59.7]}
24. fxe5 {[%clk 0:01:57.6]} 24... Nf5 {[%clk 0:00:57]} 25. h4 {[%clk 0:01:49.2]}
25... Rh5 {[%clk 0:00:48.8]} 26. Nf4 {[%clk 0:01:48.7]} 26... b3 {[%clk
0:00:39.2]} 27. cxb3 {[%clk 0:01:36.6]} 27... axb3 {[%clk 0:00:28.4]} 28. a3
{[%clk 0:01:36.7]} 28... Rxh4 {[%clk 0:00:19.7]} 29. Rxh4 {[%clk 0:01:36.4]}
29... Nxh4 {[%clk 0:00:20.6]} 30. Qh3 {[%clk 0:01:25.2]} 30... Nf5 {[%clk
0:00:14]} 31. Qh7 {[%clk 0:01:14.3]} 31... c5 {[%clk 0:00:11.7]} 32. Qg8+ {[%clk
0:01:13.8]} 32... Kd7 {[%clk 0:00:12]} 33. Qxf7+ {[%clk 0:01:14.3]} 33... Kc6
{[%clk 0:00:11.9]} 34. Qxe6+ {[%clk 0:01:13.4]} 34... Kb5 {[%clk 0:00:12.5]} 35.
Qxd5 {[%clk 0:01:08.5]} 35... Nxd4 {[%clk 0:00:06.5]} 36. Rxd4 {[%clk
0:01:03.7]} 36... Qxd5 {[%clk 0:00:02.3]} 37. Rxd5 {[%clk 0:01:03.8]} 1-0